[Event "Early-Titled-Tuesday-Blitz-February-27-2024"]
[Site "Chess.com"]
[Date "2024.02.27"]
[Round "3"]
[White "bescmelasti"]
[Black "KanalSzachowy"]
[Result "1-0"]
[WhiteElo "2652"]
[BlackElo "2457"]
[TimeControl "180+1"]
[EndTime "8:29:04 PST"]
[Termination "bescmelasti won by checkmate"]

1. e4 {[%clk 0:03:00.9]} 1... a6 {[%clk 0:03:00]} 2. d4 {[%clk 0:03:00.3]} 2...
e6 {[%clk 0:03:00]} 3. Nf3 {[%clk 0:03:00.6]} 3... c5 {[%clk 0:03:00.4]} 4. d5
{[%clk 0:02:59.1]} 4... Qe7 {[%clk 0:03:00]} 5. Nc3 {[%clk 0:02:55.1]} 5... d6
{[%clk 0:02:55.5]} 6. a4 {[%clk 0:02:49.2]} 6... e5 {[%clk 0:02:55.4]} 7. a5
{[%clk 0:02:47.5]} 7... Bg4 {[%clk 0:02:51.5]} 8. h3 {[%clk 0:02:42.3]} 8...
Bxf3 {[%clk 0:02:49.7]} 9. Qxf3 {[%clk 0:02:41.9]} 9... g6 {[%clk 0:02:49.9]}
10. h4 {[%clk 0:02:20.1]} 10... h5 {[%clk 0:02:49.8]} 11. Bg5 {[%clk 0:02:16.4]}
11... f6 {[%clk 0:02:49.9]} 12. Be3 {[%clk 0:02:15.9]} 12... Bh6 {[%clk
0:02:49]} 13. g3 {[%clk 0:02:14.4]} 13... Nd7 {[%clk 0:02:45.7]} 14. Bh3 {[%clk
0:02:13.3]} 14... Bxe3 {[%clk 0:02:39.2]} 15. Qxe3 {[%clk 0:02:13.5]} 15... Nh6
{[%clk 0:02:38.5]} 16. O-O {[%clk 0:02:05.5]} 16... g5 {[%clk 0:02:28.2]} 17.
Na4 {[%clk 0:01:56.4]} 17... gxh4 {[%clk 0:02:16.1]} 18. Bxd7+ {[%clk
0:01:55.8]} 18... Qxd7 {[%clk 0:02:09.5]} 19. Nb6 {[%clk 0:01:55.5]} 19... Qh3
{[%clk 0:02:09.5]} 20. Qf3 {[%clk 0:01:40.7]} 20... hxg3 {[%clk 0:02:00.7]} 21.
fxg3 {[%clk 0:01:41.2]} 21... Ng4 {[%clk 0:01:57.9]} 22. Rf2 {[%clk 0:00:37.7]}
22... Rd8 {[%clk 0:01:50.2]} 23. Rg2 {[%clk 0:00:36]} 23... Ke7 {[%clk
0:01:42.6]} 24. Rf1 {[%clk 0:00:34.7]} 24... Rdg8 {[%clk 0:01:38.7]} 25. Qf5
{[%clk 0:00:32.9]} 25... Qxg2+ {[%clk 0:01:34.5]} 26. Kxg2 {[%clk 0:00:31.1]}
26... Ne3+ {[%clk 0:01:35.1]} 27. Kh3 {[%clk 0:00:31.7]} 27... Nxf5 {[%clk
0:01:34.5]} 28. Rxf5 {[%clk 0:00:32.1]} 28... Rg4 {[%clk 0:01:33.1]} 29. Rxh5
{[%clk 0:00:31.2]} 29... Rxh5+ {[%clk 0:01:29]} 30. Kxg4 {[%clk 0:00:31.6]}
30... Rh2 {[%clk 0:01:29.6]} 31. Kf5 {[%clk 0:00:27.2]} 31... Rf2+ {[%clk
0:01:23.2]} 32. Kg6 {[%clk 0:00:27.1]} 32... Rxc2 {[%clk 0:01:20]} 33. Nc8+
{[%clk 0:00:25.1]} 33... Kd7 {[%clk 0:01:19.4]} 34. Nb6+ {[%clk 0:00:25.4]}
34... Ke7 {[%clk 0:01:13.2]} 35. Nc8+ {[%clk 0:00:25.8]} 35... Kd7 {[%clk
0:01:12.2]} 36. Nb6+ {[%clk 0:00:26.2]} 36... Kc7 {[%clk 0:01:11.9]} 37. Kxf6
{[%clk 0:00:26.9]} 37... Rg2 {[%clk 0:01:06.7]} 38. Ke7 {[%clk 0:00:21.3]} 38...
Rxg3 {[%clk 0:01:04.1]} 39. Na8+ {[%clk 0:00:21.4]} 39... Kb8 {[%clk 0:01:04]}
40. Nb6 {[%clk 0:00:22.3]} 40... Rg5 {[%clk 0:01:01.4]} 41. Kxd6 {[%clk
0:00:21.4]} 41... Rg6+ {[%clk 0:00:23.6]} 42. Kxe5 {[%clk 0:00:11.6]} 42... Kc7
{[%clk 0:00:24]} 43. Kf5 {[%clk 0:00:06.2]} 43... Rg2 {[%clk 0:00:21.1]} 44. e5
{[%clk 0:00:06.3]} 44... Rxb2 {[%clk 0:00:16]} 45. d6+ {[%clk 0:00:06.9]} 45...
Kd8 {[%clk 0:00:13.4]} 46. e6 {[%clk 0:00:06.7]} 46... Rb1 {[%clk 0:00:12.9]}
47. e7+ {[%clk 0:00:06.5]} 47... Ke8 {[%clk 0:00:12.2]} 48. Ke6 {[%clk
0:00:07.1]} 48... Re1+ {[%clk 0:00:11.7]} 49. Kd5 {[%clk 0:00:08]} 49... Rc1
{[%clk 0:00:07.9]} 50. Nc4 {[%clk 0:00:04.9]} 50... b5 {[%clk 0:00:04.8]} 51.
axb6 {[%clk 0:00:01.3]} 51... Rd1+ {[%clk 0:00:05.7]} 52. Kc6 {[%clk 0:00:01.3]}
52... Rc1 {[%clk 0:00:05.3]} 53. b7 {[%clk 0:00:02.2]} 53... Rxc4 {[%clk
0:00:05.4]} 54. b8=Q+ {[%clk 0:00:02.3]} 54... Kf7 {[%clk 0:00:05.7]} 55. e8=Q+
{[%clk 0:00:03.2]} 55... Kf6 {[%clk 0:00:06]} 56. Qc7 {[%clk 0:00:03.5]} 56...
Kf5 {[%clk 0:00:06.9]} 57. Qce7 {[%clk 0:00:03.9]} 57... Re4 {[%clk 0:00:06.9]}
58. Q8f8+ {[%clk 0:00:04.2]} 58... Kg4 {[%clk 0:00:07.3]} 59. Qeg7+ {[%clk
0:00:04.8]} 59... Kh4 {[%clk 0:00:08.2]} 60. Qfh8# {[%clk 0:00:05.1]} 1-0

[Event "Early-Titled-Tuesday-Blitz-February-27-2024"]
[Site "Chess.com"]
[Date "2024.02.27"]
[Round "3"]
[White "dropstoneDP"]
[Black "ChessQueen"]
[Result "1-0"]
[WhiteElo "3041"]
[BlackElo "2741"]
[TimeControl "180+1"]
[EndTime "8:29:07 PST"]
[Termination "dropstoneDP won on time"]

1. e4 {[%clk 0:03:00.9]} 1... c6 {[%clk 0:03:00]} 2. d4 {[%clk 0:03:00.4]} 2...
d5 {[%clk 0:03:00.2]} 3. Nd2 {[%clk 0:03:01.1]} 3... dxe4 {[%clk 0:02:59.2]} 4.
Nxe4 {[%clk 0:03:02]} 4... Nf6 {[%clk 0:02:59.5]} 5. Qd3 {[%clk 0:03:02.3]} 5...
Nbd7 {[%clk 0:02:52.2]} 6. c3 {[%clk 0:03:01.6]} 6... g6 {[%clk 0:02:49.8]} 7.
Nf3 {[%clk 0:03:00.1]} 7... Nxe4 {[%clk 0:02:48]} 8. Qxe4 {[%clk 0:02:59.9]}
8... Nf6 {[%clk 0:02:48.3]} 9. Qc2 {[%clk 0:03:00.2]} 9... Bg7 {[%clk
0:02:47.6]} 10. Be2 {[%clk 0:02:59.9]} 10... O-O {[%clk 0:02:45.8]} 11. O-O
{[%clk 0:03:00.5]} 11... Bf5 {[%clk 0:02:36.7]} 12. Qb3 {[%clk 0:02:59.4]} 12...
Qb6 {[%clk 0:02:35.5]} 13. Re1 {[%clk 0:02:59.1]} 13... Rfe8 {[%clk 0:02:34.8]}
14. Bc4 {[%clk 0:02:56.7]} 14... Nd5 {[%clk 0:02:22.3]} 15. Ne5 {[%clk
0:02:52.7]} 15... Rad8 {[%clk 0:02:05.1]} 16. Qxb6 {[%clk 0:02:50]} 16... axb6
{[%clk 0:02:03.6]} 17. a4 {[%clk 0:02:50.5]} 17... Bc8 {[%clk 0:02:00.1]} 18. h3
{[%clk 0:02:49.1]} 18... f6 {[%clk 0:01:48.4]} 19. Nd3 {[%clk 0:02:46.2]} 19...
Kf8 {[%clk 0:01:44.6]} 20. Nf4 {[%clk 0:02:42.2]} 20... e6 {[%clk 0:01:35.1]}
21. Bd2 {[%clk 0:02:39.9]} 21... Kf7 {[%clk 0:01:33.9]} 22. Nxd5 {[%clk
0:02:34.8]} 22... exd5 {[%clk 0:01:33.6]} 23. Bd3 {[%clk 0:02:35]} 23... Bf8
{[%clk 0:01:28.8]} 24. Bf4 {[%clk 0:02:33.1]} 24... Bd6 {[%clk 0:01:26.9]} 25.
Rxe8 {[%clk 0:02:30.7]} 25... Kxe8 {[%clk 0:01:26.6]} 26. Bxd6 {[%clk
0:02:31.4]} 26... Rxd6 {[%clk 0:01:26.6]} 27. b4 {[%clk 0:02:32]} 27... Kd8
{[%clk 0:01:24.8]} 28. h4 {[%clk 0:02:31.2]} 28... Rd7 {[%clk 0:01:19.6]} 29. f3
{[%clk 0:02:28.6]} 29... Re7 {[%clk 0:01:19.6]} 30. Kf2 {[%clk 0:02:28.8]} 30...
Kc7 {[%clk 0:01:17.9]} 31. g4 {[%clk 0:02:26.5]} 31... Kd6 {[%clk 0:01:15.2]}
32. a5 {[%clk 0:02:21.1]} 32... bxa5 {[%clk 0:01:14.5]} 33. Rxa5 {[%clk
0:02:22]} 33... Bd7 {[%clk 0:01:12.8]} 34. Ra8 {[%clk 0:02:15.9]} 34... Be8
{[%clk 0:01:10.7]} 35. g5 {[%clk 0:02:13.4]} 35... fxg5 {[%clk 0:01:02.8]} 36.
hxg5 {[%clk 0:02:14.3]} 36... Kc7 {[%clk 0:01:00.3]} 37. f4 {[%clk 0:02:12.9]}
37... Kd6 {[%clk 0:01:00.1]} 38. Kf3 {[%clk 0:02:12.4]} 38... Kc7 {[%clk
0:01:00.3]} 39. f5 {[%clk 0:02:04.4]} 39... gxf5 {[%clk 0:00:59.8]} 40. Bxf5
{[%clk 0:02:05.3]} 40... Bd7 {[%clk 0:00:42.7]} 41. Bxd7 {[%clk 0:01:33]} 41...
Kxd7 {[%clk 0:00:43.6]} 42. Rf8 {[%clk 0:01:26.2]} 42... b5 {[%clk 0:00:41.3]}
43. Kg4 {[%clk 0:01:25.1]} 43... Re4+ {[%clk 0:00:29.7]} 44. Kh5 {[%clk
0:01:23.4]} 44... Re3 {[%clk 0:00:21.3]} 45. Rf7+ {[%clk 0:01:19.4]} 45... Ke6
{[%clk 0:00:21.6]} 46. Rxh7 {[%clk 0:01:20]} 46... Rh3+ {[%clk 0:00:21.9]} 47.
Kg6 {[%clk 0:01:19.9]} 47... Rxc3 {[%clk 0:00:22.7]} 48. Rh4 {[%clk 0:01:12.3]}
48... Rb3 {[%clk 0:00:20.4]} 49. Kh7 {[%clk 0:01:12.2]} 49... Rg3 {[%clk
0:00:16.7]} 50. Kg6 {[%clk 0:00:53.9]} 50... Rg1 {[%clk 0:00:15.1]} 51. Rf4
{[%clk 0:00:47.8]} 51... Ke7 {[%clk 0:00:15.4]} 52. Rf7+ {[%clk 0:00:47.9]}
52... Ke8 {[%clk 0:00:15.2]} 53. Rf6 {[%clk 0:00:48]} 53... Rg4 {[%clk
0:00:14.4]} 54. Rxc6 {[%clk 0:00:43.3]} 54... Rxd4 {[%clk 0:00:14.5]} 55. Rc5
{[%clk 0:00:30.4]} 55... Rxb4 {[%clk 0:00:13.6]} 56. Rxd5 {[%clk 0:00:30.9]}
56... Kf8 {[%clk 0:00:13.1]} 57. Rf5+ {[%clk 0:00:22.4]} 57... Ke7 {[%clk
0:00:10.7]} 58. Kg7 {[%clk 0:00:16.9]} 58... Rb1 {[%clk 0:00:10.8]} 59. g6
{[%clk 0:00:16.9]} 59... b4 {[%clk 0:00:11.4]} 60. Rh5 {[%clk 0:00:14.2]} 60...
b3 {[%clk 0:00:11.4]} 61. Kh7 {[%clk 0:00:12.8]} 61... b2 {[%clk 0:00:10.9]} 62.
Rh2 {[%clk 0:00:13.3]} 62... Kf6 {[%clk 0:00:04]} 63. g7 {[%clk 0:00:13.5]}
63... Rg1 {[%clk 0:00:01.5]} 64. Rf2+ {[%clk 0:00:13.9]} 1-0

[Event "Early-Titled-Tuesday-Blitz-February-27-2024"]
[Site "Chess.com"]
[Date "2024.02.27"]
[Round "3"]
[White "SantoBlue"]
[Black "Suleyman_Chess06"]
[Result "1-0"]
[WhiteElo "2961"]
[BlackElo "2721"]
[TimeControl "180+1"]
[EndTime "8:29:11 PST"]
[Termination "SantoBlue won by resignation"]

1. Nf3 {[%clk 0:02:59.9]} 1... d5 {[%clk 0:02:59.6]} 2. g3 {[%clk 0:02:58.9]}
2... Nf6 {[%clk 0:03:00.3]} 3. Bg2 {[%clk 0:02:59.2]} 3... e6 {[%clk 0:03:01]}
4. O-O {[%clk 0:02:59.5]} 4... Be7 {[%clk 0:03:01.8]} 5. c4 {[%clk 0:03:00]}
5... dxc4 {[%clk 0:03:02]} 6. Qa4+ {[%clk 0:02:50.4]} 6... Nbd7 {[%clk
0:03:02.1]} 7. Qxc4 {[%clk 0:02:49]} 7... a6 {[%clk 0:03:02.8]} 8. Qc2 {[%clk
0:02:46.6]} 8... O-O {[%clk 0:03:02.3]} 9. d4 {[%clk 0:02:42.9]} 9... c5 {[%clk
0:03:02.3]} 10. Nc3 {[%clk 0:02:41.9]} 10... b5 {[%clk 0:02:42.3]} 11. Ne5
{[%clk 0:02:34]} 11... Nxe5 {[%clk 0:02:34.9]} 12. dxe5 {[%clk 0:02:32.2]} 12...
Nd5 {[%clk 0:02:35]} 13. Rd1 {[%clk 0:02:10.1]} 13... Bb7 {[%clk 0:02:28.9]} 14.
a3 {[%clk 0:02:10.4]} 14... Qa5 {[%clk 0:01:53.8]} 15. Nxd5 {[%clk 0:01:08.9]}
15... Bxd5 {[%clk 0:01:52.1]} 16. Bxd5 {[%clk 0:01:09.5]} 16... exd5 {[%clk
0:01:53]} 17. Rxd5 {[%clk 0:01:08.1]} 17... Rad8 {[%clk 0:01:39.5]} 18. Bd2
{[%clk 0:01:03.6]} 18... Qc7 {[%clk 0:01:31.5]} 19. Rxd8 {[%clk 0:01:01.2]}
19... Rxd8 {[%clk 0:01:32.4]} 20. Bc3 {[%clk 0:00:49]} 20... Qd7 {[%clk
0:01:22.6]} 21. Qe4 {[%clk 0:00:44.5]} 21... h6 {[%clk 0:01:20]} 22. Kg2 {[%clk
0:00:41.8]} 22... Qd5 {[%clk 0:01:18.4]} 23. Qxd5 {[%clk 0:00:40.9]} 23... Rxd5
{[%clk 0:01:19.3]} 24. Kf3 {[%clk 0:00:40.1]} 24... f5 {[%clk 0:01:13.5]} 25.
exf6 {[%clk 0:00:39.2]} 25... Bxf6 {[%clk 0:01:13.8]} 26. Ke4 {[%clk 0:00:35.2]}
26... Rd7 {[%clk 0:01:12.7]} 27. Rc1 {[%clk 0:00:32.5]} 27... Bxc3 {[%clk
0:01:05.4]} 28. Rxc3 {[%clk 0:00:33.4]} 28... Re7+ {[%clk 0:01:05.9]} 29. Kf3
{[%clk 0:00:31.4]} 29... c4 {[%clk 0:01:04.4]} 30. b3 {[%clk 0:00:31.6]} 30...
cxb3 {[%clk 0:01:04.6]} 31. Rxb3 {[%clk 0:00:32]} 31... Rc7 {[%clk 0:01:04.4]}
32. e4 {[%clk 0:00:31.3]} 32... Rc5 {[%clk 0:01:01.7]} 33. Rd3 {[%clk
0:00:31.3]} 33... a5 {[%clk 0:01:01.6]} 34. Kf4 {[%clk 0:00:29.6]} 34... b4
{[%clk 0:00:56.9]} 35. axb4 {[%clk 0:00:29.6]} 35... axb4 {[%clk 0:00:57.8]} 36.
Rd8+ {[%clk 0:00:30]} 36... Kf7 {[%clk 0:00:57.8]} 37. Rb8 {[%clk 0:00:30.9]}
37... Rc4 {[%clk 0:00:57.8]} 38. h4 {[%clk 0:00:28]} 38... h5 {[%clk 0:00:51.5]}
39. Rb6 {[%clk 0:00:27]} 39... Rc2 {[%clk 0:00:34.3]} 40. f3 {[%clk 0:00:23.6]}
40... Rb2 {[%clk 0:00:34.8]} 41. Kg5 {[%clk 0:00:19]} 41... Rb3 {[%clk
0:00:30.4]} 42. Kf4 {[%clk 0:00:17.7]} 42... Rb2 {[%clk 0:00:30.3]} 43. e5
{[%clk 0:00:18.4]} 43... b3 {[%clk 0:00:30.5]} 44. Kf5 {[%clk 0:00:17.7]} 44...
Rb1 {[%clk 0:00:25.7]} 45. e6+ {[%clk 0:00:18.1]} 45... Ke8 {[%clk 0:00:21.5]}
46. Rb8+ {[%clk 0:00:18.3]} 46... Ke7 {[%clk 0:00:22.1]} 47. Rb7+ {[%clk
0:00:19.2]} 47... Ke8 {[%clk 0:00:22.1]} 48. Rxg7 {[%clk 0:00:17.8]} 48... b2
{[%clk 0:00:22.2]} 49. Rb7 {[%clk 0:00:18.4]} 49... Rf1 {[%clk 0:00:22.5]} 50.
Rxb2 {[%clk 0:00:18.2]} 50... Rxf3+ {[%clk 0:00:23]} 51. Kg5 {[%clk 0:00:17.3]}
51... Rxg3+ {[%clk 0:00:23.5]} 52. Kxh5 {[%clk 0:00:17.4]} 52... Ke7 {[%clk
0:00:23.2]} 53. Re2 {[%clk 0:00:17.5]} 53... Rh3 {[%clk 0:00:19.3]} 54. Kg4
{[%clk 0:00:16.6]} 54... Rh1 {[%clk 0:00:19.9]} 55. h5 {[%clk 0:00:17]} 55...
Rf1 {[%clk 0:00:13.7]} 56. Re5 {[%clk 0:00:13.2]} 56... Rg1+ {[%clk 0:00:12.1]}
57. Kf5 {[%clk 0:00:13.1]} 57... Rg2 {[%clk 0:00:10.8]} 58. Re4 {[%clk
0:00:12.1]} 58... Rg1 {[%clk 0:00:10.5]} 59. h6 {[%clk 0:00:11.2]} 59... Rh1
{[%clk 0:00:08.1]} 60. Kg5 {[%clk 0:00:11.5]} 60... Rg1+ {[%clk 0:00:08.8]} 61.
Rg4 {[%clk 0:00:12]} 61... Rh1 {[%clk 0:00:06.6]} 62. Kg6 {[%clk 0:00:12.5]}
62... Kxe6 {[%clk 0:00:04.8]} 63. h7 {[%clk 0:00:13.1]} 63... Rh2 {[%clk
0:00:03.6]} 64. Kg7 {[%clk 0:00:13]} 64... Kf5 {[%clk 0:00:04.3]} 65. Rg1 {[%clk
0:00:12.4]} 65... Kf4 {[%clk 0:00:03.8]} 66. h8=Q {[%clk 0:00:12.7]} 1-0

[Event "Early-Titled-Tuesday-Blitz-February-27-2024"]
[Site "Chess.com"]
[Date "2024.02.27"]
[Round "3"]
[White "Makswolf200817"]
[Black "Sanan_Sjugirov"]
[Result "0-1"]
[WhiteElo "2724"]
[BlackElo "2976"]
[TimeControl "180+1"]
[EndTime "8:29:13 PST"]
[Termination "Sanan_Sjugirov won by resignation"]

1. d4 {[%clk 0:03:00.9]} 1... d5 {[%clk 0:02:58.6]} 2. c4 {[%clk 0:03:01.3]}
2... e6 {[%clk 0:02:58.7]} 3. Nf3 {[%clk 0:03:01.9]} 3... Nf6 {[%clk 0:02:57.1]}
4. g3 {[%clk 0:03:02.4]} 4... Bb4+ {[%clk 0:02:55.1]} 5. Bd2 {[%clk 0:03:02.4]}
5... Be7 {[%clk 0:02:55.4]} 6. Bg2 {[%clk 0:03:03]} 6... O-O {[%clk 0:02:55.5]}
7. O-O {[%clk 0:03:03.6]} 7... c6 {[%clk 0:02:55.8]} 8. Qc2 {[%clk 0:03:04.2]}
8... Nbd7 {[%clk 0:02:55.5]} 9. Rc1 {[%clk 0:02:59.9]} 9... a5 {[%clk 0:02:54]}
10. h4 {[%clk 0:02:57.7]} 10... h6 {[%clk 0:02:53.1]} 11. Bf4 {[%clk 0:02:54.3]}
11... a4 {[%clk 0:02:48.6]} 12. Nbd2 {[%clk 0:02:53.1]} 12... Nh5 {[%clk
0:02:46.5]} 13. e3 {[%clk 0:02:52.7]} 13... f5 {[%clk 0:02:25.1]} 14. Ne5 {[%clk
0:02:14.7]} 14... Nxf4 {[%clk 0:02:18.3]} 15. exf4 {[%clk 0:02:12.6]} 15... Nxe5
{[%clk 0:02:18.1]} 16. fxe5 {[%clk 0:02:00.4]} 16... dxc4 {[%clk 0:01:31.6]} 17.
Qxc4 {[%clk 0:01:56.4]} 17... Bd7 {[%clk 0:01:29.8]} 18. Rc3 {[%clk 0:01:43.9]}
18... Qb6 {[%clk 0:01:24.9]} 19. Rb1 {[%clk 0:01:38.4]} 19... Rfd8 {[%clk
0:01:18.9]} 20. Nf3 {[%clk 0:01:37.8]} 20... Qa6 {[%clk 0:01:02.5]} 21. Bf1
{[%clk 0:01:27.2]} 21... Qxc4 {[%clk 0:01:01.5]} 22. Bxc4 {[%clk 0:01:28.1]}
22... Kf8 {[%clk 0:00:58.7]} 23. a3 {[%clk 0:01:25.4]} 23... g5 {[%clk
0:00:50.8]} 24. Kg2 {[%clk 0:01:13.9]} 24... Kg7 {[%clk 0:00:50.4]} 25. Rg1
{[%clk 0:01:11.6]} 25... Re8 {[%clk 0:00:45.2]} 26. Ba2 {[%clk 0:01:10.2]} 26...
Bd8 {[%clk 0:00:44.1]} 27. Kf1 {[%clk 0:01:05.3]} 27... Rc8 {[%clk 0:00:34.1]}
28. Ke2 {[%clk 0:01:01.2]} 28... Ba5 {[%clk 0:00:28.2]} 29. Rc2 {[%clk
0:00:58.7]} 29... g4 {[%clk 0:00:08.7]} 30. Nd2 {[%clk 0:00:58.8]} 30... Bb6
{[%clk 0:00:06.8]} 31. Nc4 {[%clk 0:00:57.3]} 31... Bxd4 {[%clk 0:00:04.4]} 32.
Rd1 {[%clk 0:00:51.6]} 32... c5 {[%clk 0:00:05.1]} 33. Nd6 {[%clk 0:00:47.2]}
33... Red8 {[%clk 0:00:05.6]} 34. Nxc8 {[%clk 0:00:29.4]} 34... Rxc8 {[%clk
0:00:06.5]} 35. Ke1 {[%clk 0:00:27.3]} 35... Kf8 {[%clk 0:00:05.1]} 36. Rdc1
{[%clk 0:00:23.4]} 36... Ke7 {[%clk 0:00:04.5]} 37. Bc4 {[%clk 0:00:23.6]} 37...
b5 {[%clk 0:00:04.2]} 38. Be2 {[%clk 0:00:23.6]} 38... c4 {[%clk 0:00:04.2]} 39.
Rd1 {[%clk 0:00:22.5]} 39... Bxe5 {[%clk 0:00:04.3]} 40. Rcd2 {[%clk 0:00:23.2]}
40... Bc6 {[%clk 0:00:04.6]} 41. Kf1 {[%clk 0:00:15.7]} 41... Rc7 {[%clk
0:00:04.8]} 42. Kg1 {[%clk 0:00:16.1]} 42... Rd7 {[%clk 0:00:04.9]} 43. Rxd7+
{[%clk 0:00:15.3]} 43... Bxd7 {[%clk 0:00:05.8]} 44. Rd2 {[%clk 0:00:16.2]}
44... Bf6 {[%clk 0:00:03.3]} 45. Kf1 {[%clk 0:00:16.3]} 45... Bc6 {[%clk
0:00:03.5]} 46. Bd1 {[%clk 0:00:14.7]} 46... Bd5 {[%clk 0:00:02.3]} 47. Ke1
{[%clk 0:00:13.5]} 47... c3 {[%clk 0:00:02.3]} 48. Rxd5 {[%clk 0:00:06.8]} 48...
exd5 {[%clk 0:00:02.1]} 49. bxc3 {[%clk 0:00:07.5]} 49... Bxc3+ {[%clk
0:00:02.3]} 50. Ke2 {[%clk 0:00:08.4]} 50... Kd6 {[%clk 0:00:02.3]} 51. Bc2
{[%clk 0:00:08.8]} 51... Ke5 {[%clk 0:00:02.4]} 52. Bd3 {[%clk 0:00:09]} 52...
b4 {[%clk 0:00:02.7]} 53. axb4 {[%clk 0:00:09.6]} 53... a3 {[%clk 0:00:03.2]}
54. Bc2 {[%clk 0:00:10.4]} 54... Bxb4 {[%clk 0:00:03.7]} 55. Bb3 {[%clk
0:00:10.4]} 55... f4 {[%clk 0:00:03.4]} 56. gxf4+ {[%clk 0:00:09.9]} 56... Ke4
{[%clk 0:00:03.8]} 57. f5 {[%clk 0:00:09.8]} 57... d4 {[%clk 0:00:04.2]} 58. f6
{[%clk 0:00:04.6]} 58... d3+ {[%clk 0:00:04.3]} 59. Kd1 {[%clk 0:00:05.3]} 59...
Kf3 {[%clk 0:00:04.2]} 60. f7 {[%clk 0:00:05.6]} 60... Kxf2 {[%clk 0:00:04.2]}
61. h5 {[%clk 0:00:04.2]} 61... g3 {[%clk 0:00:04.3]} 0-1

[Event "Early-Titled-Tuesday-Blitz-February-27-2024"]
[Site "Chess.com"]
[Date "2024.02.27"]
[Round "3"]
[White "andrzej"]
[Black "IMRosen"]
[Result "1-0"]
[WhiteElo "2501"]
[BlackElo "2701"]
[TimeControl "180+1"]
[EndTime "8:29:21 PST"]
[Termination "andrzej won on time"]

1. e4 {[%clk 0:03:00.9]} 1... c5 {[%clk 0:03:00.1]} 2. Nf3 {[%clk 0:03:01.2]}
2... Nc6 {[%clk 0:03:00]} 3. d4 {[%clk 0:03:01.8]} 3... cxd4 {[%clk 0:03:00.9]}
4. Nxd4 {[%clk 0:03:02.5]} 4... g6 {[%clk 0:03:01.5]} 5. c4 {[%clk 0:03:02.2]}
5... Nf6 {[%clk 0:03:01.2]} 6. Nc3 {[%clk 0:03:02]} 6... d6 {[%clk 0:03:01.8]}
7. Be2 {[%clk 0:02:58.6]} 7... Nxd4 {[%clk 0:03:01.6]} 8. Qxd4 {[%clk
0:02:58.7]} 8... Bg7 {[%clk 0:03:02]} 9. O-O {[%clk 0:02:56.8]} 9... O-O {[%clk
0:03:02.2]} 10. Qd3 {[%clk 0:02:57.4]} 10... a5 {[%clk 0:03:00.7]} 11. Be3
{[%clk 0:02:42.3]} 11... a4 {[%clk 0:02:58.4]} 12. Bd4 {[%clk 0:02:41.7]} 12...
Nd7 {[%clk 0:02:42.7]} 13. Bxg7 {[%clk 0:02:34]} 13... Kxg7 {[%clk 0:02:43.6]}
14. b4 {[%clk 0:02:31.3]} 14... axb3 {[%clk 0:02:25.9]} 15. axb3 {[%clk
0:02:31.2]} 15... Nc5 {[%clk 0:02:17.1]} 16. Qc2 {[%clk 0:02:12.1]} 16... Rxa1
{[%clk 0:01:34.7]} 17. Rxa1 {[%clk 0:02:13]} 17... Bd7 {[%clk 0:01:35.2]} 18. b4
{[%clk 0:02:09]} 18... Ne6 {[%clk 0:01:35.5]} 19. Qb2 {[%clk 0:01:52.7]} 19...
f6 {[%clk 0:01:31.6]} 20. Nd5 {[%clk 0:01:48.1]} 20... Bc6 {[%clk 0:01:24.8]}
21. h4 {[%clk 0:01:42]} 21... Bxd5 {[%clk 0:00:40.7]} 22. exd5 {[%clk
0:01:41.8]} 22... Nf4 {[%clk 0:00:41.4]} 23. Bf1 {[%clk 0:01:41.6]} 23... Qb6
{[%clk 0:00:17.5]} 24. Re1 {[%clk 0:01:40.5]} 24... Rf7 {[%clk 0:00:16.4]} 25.
g3 {[%clk 0:01:26]} 25... Nh5 {[%clk 0:00:16.6]} 26. Kg2 {[%clk 0:01:26.5]}
26... Kf8 {[%clk 0:00:15.4]} 27. Be2 {[%clk 0:01:25.7]} 27... Ng7 {[%clk
0:00:15.5]} 28. Bg4 {[%clk 0:01:22.3]} 28... f5 {[%clk 0:00:12.7]} 29. Bf3
{[%clk 0:01:21.4]} 29... Qc7 {[%clk 0:00:11.9]} 30. c5 {[%clk 0:01:15.2]} 30...
dxc5 {[%clk 0:00:09.3]} 31. bxc5 {[%clk 0:01:16.1]} 31... Qxc5 {[%clk
0:00:09.6]} 32. Qxb7 {[%clk 0:01:16]} 32... Kg8 {[%clk 0:00:09.8]} 33. d6 {[%clk
0:00:56.4]} 33... Qxd6 {[%clk 0:00:02.2]} 34. Qb3 {[%clk 0:00:46.6]} 34... e6
{[%clk 0:00:02.5]} 35. Rd1 {[%clk 0:00:47]} 35... Qe7 {[%clk 0:00:02.8]} 36. Bc6
{[%clk 0:00:45]} 36... Rf8 {[%clk 0:00:03.2]} 37. Rd7 {[%clk 0:00:44.2]} 37...
Qf6 {[%clk 0:00:03.4]} 38. Qb7 {[%clk 0:00:37.4]} 38... h6 {[%clk 0:00:03.7]}
39. Ba4 {[%clk 0:00:33.7]} 39... g5 {[%clk 0:00:04]} 40. hxg5 {[%clk 0:00:33.5]}
40... hxg5 {[%clk 0:00:04.2]} 41. Bb3 {[%clk 0:00:32.8]} 41... f4 {[%clk
0:00:04.2]} 42. g4 {[%clk 0:00:18.7]} 42... f3+ {[%clk 0:00:04.7]} 43. Kg1
{[%clk 0:00:17.7]} 43... Qa1+ {[%clk 0:00:04.5]} 44. Rd1 {[%clk 0:00:17.6]}
44... Qf6 {[%clk 0:00:05.4]} 45. Qe4 {[%clk 0:00:14.2]} 45... Rb8 {[%clk
0:00:02.8]} 46. Bc2 {[%clk 0:00:13.8]} 46... Re8 {[%clk 0:00:01.6]} 47. Qh7+
{[%clk 0:00:14]} 47... Kf7 {[%clk 0:00:02.3]} 48. Rd7+ {[%clk 0:00:14]} 48...
Re7 {[%clk 0:00:02.9]} 49. Rd8 {[%clk 0:00:13.3]} 49... Re8 {[%clk 0:00:02.5]}
50. Rd7+ {[%clk 0:00:10.4]} 50... Re7 {[%clk 0:00:03]} 51. Bg6+ {[%clk
0:00:06.5]} 51... Qxg6 {[%clk 0:00:01.2]} 52. Rxe7+ {[%clk 0:00:06.3]} 52... Kf6
{[%clk 0:00:01.5]} 53. Qxg6+ {[%clk 0:00:04.7]} 53... Kxg6 {[%clk 0:00:02.4]}
54. Ra7 {[%clk 0:00:04.1]} 54... Kf6 {[%clk 0:00:02.9]} 55. Ra3 {[%clk
0:00:04.3]} 55... Kg6 {[%clk 0:00:02.1]} 56. Rxf3 {[%clk 0:00:04.9]} 56... Ne8
{[%clk 0:00:02.8]} 57. Re3 {[%clk 0:00:05]} 57... Kf6 {[%clk 0:00:02.8]} 58. Kg2
{[%clk 0:00:05.4]} 58... Nc7 {[%clk 0:00:02.7]} 59. Ra3 {[%clk 0:00:05.8]} 59...
Nd5 {[%clk 0:00:03.2]} 60. Ra4 {[%clk 0:00:05.3]} 60... Nc3 {[%clk 0:00:03.1]}
61. Rc4 {[%clk 0:00:05]} 61... Nd5 {[%clk 0:00:03.1]} 62. Ra4 {[%clk 0:00:04.8]}
62... Nc3 {[%clk 0:00:03.2]} 63. Ra8 {[%clk 0:00:05.1]} 63... Ne2 {[%clk
0:00:03.2]} 64. Kf3 {[%clk 0:00:04.8]} 64... Nd4+ {[%clk 0:00:03.1]} 65. Ke4
{[%clk 0:00:05.2]} 65... Ne2 {[%clk 0:00:03.5]} 66. f3 {[%clk 0:00:05]} 66...
Ng3+ {[%clk 0:00:03.6]} 67. Ke3 {[%clk 0:00:05.1]} 67... Nf1+ {[%clk 0:00:03.8]}
68. Ke2 {[%clk 0:00:05]} 68... Ng3+ {[%clk 0:00:02.4]} 69. Kf2 {[%clk
0:00:05.3]} 1-0